Workbook

Sheet LinesOfFit
C1: Comparing Lines that Fit Data
C3: This program lets you compare three different
C4: regression lines -- the least squares line,
C5: the median-median line,
C6: and the quartile-quartile line --
C7: based on a random sample from a population.
A11: How many random points n (4-40)? | D11: 11 | E11: 10
A13: The regression line for the
B14: underlying bivariate population is: | E14: y = | F14: 1.5x- 0.60
J16: The least squares line is y = | N16: =samples!H55 -> 1.51 | O16: =IF(samples!H56>=0,"x + ","x - ") -> x + | P16: =ABS(samples!H56) -> 0.08 | Q16: R2 = | R16: =samples!M56 -> 0.855
D17: 0
D18: -1 | J18: The quartile-quartile line is y = | N18: =mQQ -> 1.24 | O18: =IF(samples!F68>=0,"x + ","x - ") -> x + | P18: =ABS(samples!F68) -> 2.04 | Q18: R2 = | R18: =IF(samples!P56>=0,samples!P56,0) -> 0.820
J20: The median- median line is y = | N20: =mMed -> 1.73 | O20: =IF(samples!I82>=0,"x + ","x - ") -> x - | P20: =ABS(samples!I82) -> 0.87 | Q20: R2 = | R20: =IF(samples!S56>=0,samples!S56,0) -> 0.829
A21: Click each item below for suggestions and investigations
C22: Item 1
C23: Item 2
C24: Item 3
C25: Item 4
C26: Item 5
A30: To access/download all the DIGMath Apps for Precalculus and College Algebra
A31: Click this link: | C31: we-dig-math.org/dynamicprecalculus
A33: Created by: Sheldon P. Gordon & Florence S. Gordon
A34: Farmingdale State College NYIT | J34: The underlying population and its regression line
A35: Development of this module was supported by the
A36: NSF's Division of Undergraduate Education
A37: under grants DUE-0310123 and DUE-0442160.

Sheet samples
B1: x-y data | D1: sample | E1: x | F1: y | G1: x*y | H1: x^2 | J1: x | K1: y | M1: R^2 for least squares | P1: R^2 for Q-Q | S1: R^2 for M-M
A2: 1 | B2: 9.09214193 | C2: 9.22605615 | D2: =IF($A2<=n,INT(501*RAND()+1),"") -> 320 | E2: =IF(D2<>"",INDEX($B$2:$B$502,D2),"") -> 8.687714618 | F2: =IF(D2<>"",INDEX($C$2:$C$502,D2),"") -> 15.23353526 | G2: =IF(D2<>"",E2*F2,"") -> 132.344607 | H2: =IF(D2<>"",E2^2,"") -> 75.47638529 | J2: =E2 -> 8.687714618 | K2: =F2 -> 15.23353526 | M2: =(F2-a*E2-b)^2 -> 4.110925433 | N2: =(F2-AVERAGE(F2:F53))^2 -> 41.86746352 | P2: =($F2-aa*$E2-bb)^2 -> 5.93818486 | Q2: =($F2-AVERAGE($F2:$F53))^2 -> 41.86746352 | S2: =($F2-aaa*$E2-bbb)^2 -> 0.9444572265 | T2: =($F2-AVERAGE($F2:$F53))^2 -> 41.86746352
A3: 2 | B3: 7.73094449 | C3: 8.6631947 | D3: 301 | E3: =IF(D3<>"",INDEX($B$2:$B$502,D3),"") -> 1.488031961 | F3: =IF(D3<>"",INDEX($C$2:$C$502,D3),"") -> 1.081609244 | G3: =IF(D3<>"",E3*F3,"") -> 1.609469124 | H3: =IF(D3<>"",E3^2,"") -> 2.214239117 | J3: =E3 -> 1.488031961 | K3: =F3 -> 1.081609244 | M3: =(F3-a*E3-b)^2 -> 1.554311696 | N3: =(F3-AVERAGE(F$2:F$53))^2 -> 59.00419499 | P3: =($F3-aa*$E3-bb)^2 -> 7.86337314 | Q3: =($F3-AVERAGE($F2:$F53))^2 -> 59.00419499 | S3: =($F3-aaa*$E3-bbb)^2 -> 0.5658441076 | T3: =($F3-AVERAGE($F2:$F53))^2 -> 59.00419499
A4: 3 | B4: 7.96784314 | C4: 7.84023659 | D4: 271 | E4: =IF(A4<=n,IF(D4<>"",INDEX($B$2:$B$502,D4),E3)) -> 9.500293657 | F4: =IF(A4<=n,IF(D4<>"",INDEX($C$2:$C$502,D4),F3)) -> 15.38973158 | G4: 146.2069693 | H4: 90.25557956 | J4: =IF($A4<=n,E4,"") -> 9.500293657 | K4: =IF($A4<=n,F4,"") -> 15.38973158 | M4: =IF($A4<=n,(F4-a*E4-b)^2,0) -> 0.9140322856 | N4: =IF($A4<=n,(F4-AVERAGE(F$2:F$53))^2,0) -> 43.91319957 | P4: =IF($A4<=n,($F4-aa*$E4-bb)^2,0) -> 2.519588384 | Q4: =IF($A4<=n,($F4-AVERAGE($F$2:$F$53))^2,0) -> 43.91319957 | S4: =IF($A4<=n,($F4-aaa*$E4-bbb)^2,0) -> 0.07541637966 | T4: =IF($A4<=n,($F4-AVERAGE($F$2:$F$53))^2,0) -> 43.91319957
A5: 4 | B5: 6.21715943 | C5: 9.71304483 | D5: 197 | E5: 3.002048693 | F5: 4.451151681 | G5: 13.36257409 | H5: 9.012296356 | J5: 3.002048693 | K5: 4.451151681 | M5: 0.02710469485 | N5: 18.59227788 | P5: 1.712170147 | Q5: 18.59227788 | S5: 1.495983419e-05 | T5: 18.59227788
A6: 5 | B6: 7.80181084 | C6: 8.84088725 | D6: 266 | E6: 7.216192691 | F6: 9.885922997 | G6: 71.33872528 | H6: 52.07343696 | J6: 7.216192691 | K6: 9.885922997 | M6: 1.203007231 | N6: 1.260893047 | P6: 1.18700423 | Q6: 1.260893047 | S6: 3.369739577 | T6: 1.260893047
A7: 6 | B7: 9.53953478 | C7: 13.2443258 | D7: 312 | E7: 5.41607617 | F7: 7.098110858 | G7: 38.44390907 | H7: 29.33388108 | J7: 5.41607617 | K7: 7.098110858 | M7: 1.357031875 | N7: 2.771949279 | P7: 2.720315536 | Q7: 2.771949279 | S7: 2.298838465 | T7: 2.771949279
A8: 7 | B8: 5.57186894 | C8: 3.42029568 | D8: 395 | E8: 7.826619217 | F8: 10.13472144 | G8: 79.3206056 | H8: 61.25596836 | J8: 7.826619217 | K8: 10.13472144 | M8: 3.133903018 | N8: 1.881542745 | P8: 2.547894653 | Q8: 1.881542745 | S8: 6.972693677 | T8: 1.881542745
A9: 8 | B9: 2.1716921 | C9: 4.08450283 | D9: 274 | E9: 3.026255872 | F9: 9.169401729 | G9: 27.74895582 | H9: 9.158224602 | J9: 3.026255872 | K9: 9.169401729 | M9: 20.40366408 | N9: 0.1651395616 | P9: 11.4229809 | Q9: 0.1651395616 | S9: 21.90550917 | T9: 0.1651395616
A10: 9 | B10: 4.55813861 | C10: 7.46997257 | D10: 229 | E10: 9.402733103 | F10: 14.39290875 | G10: 135.3326795 | H10: 88.4113898 | J10: 9.402733103 | K10: 14.39290875 | M10: 0.0113693612 | N10: 31.6955566 | P10: 0.5058726177 | Q10: 31.6955566 | S10: 1.216691215 | T10: 31.6955566
A11: 10 | B11: 4.30812811 | C11: 4.96796458 | D11: 239 | E11: 1.687141981 | F11: 2.169797273 | G11: 3.660756069 | H11: 2.846448064 | J11: 1.687141981 | K11: 2.169797273 | M11: 0.2110101094 | N11: 43.47069217 | P11: 3.851082401 | Q11: 43.47069217 | S11: 5.983933678e-05 | T11: 43.47069217
A12: 11 | B12: 0.983887791 | C12: -0.190496477 | D12: 398 | E12: 5.964057635 | F12: 7.386417809 | G12: 44.05302153 | H12: 35.56998348 | J12: 5.964057635 | K12: 7.386417809 | M12: 2.90542162 | N12: 1.895055773 | P12: 4.15857175 | Q12: 1.895055773 | S12: 4.725378986 | T12: 1.895055773
A13: 12 | B13: 9.19486152 | C13: 11.0320721 | E13: FALSE | F13: FALSE | M13: 0 | N13: 0 | P13: 0 | Q13: 0 | S13: 0 | T13: 0
A14: 13 | B14: 5.69596444 | C14: 8.77827914 | E14: FALSE | F14: FALSE | M14: 0 | N14: 0 | P14: 0 | Q14: 0 | S14: 0 | T14: 0
A15: 14 | B15: 2.35391531 | C15: 1.08322714 | E15: FALSE | F15: FALSE | M15: 0 | N15: 0 | P15: 0 | Q15: 0 | S15: 0 | T15: 0
A16: 15 | B16: 0.741468446 | C16: -3.10509067 | E16: FALSE | F16: FALSE | M16: 0 | N16: 0 | P16: 0 | Q16: 0 | S16: 0 | T16: 0
A17: 16 | B17: 1.20622191 | C17: -1.56819643 | E17: FALSE | F17: FALSE | M17: 0 | N17: 0 | P17: 0 | Q17: 0 | S17: 0 | T17: 0
A18: 17 | B18: 2.13610764 | C18: 4.70049726 | E18: FALSE | F18: FALSE | M18: 0 | N18: 0 | P18: 0 | Q18: 0 | S18: 0 | T18: 0
A19: 18 | B19: 6.2052832 | C19: 8.9630256 | E19: FALSE | F19: FALSE | M19: 0 | N19: 0 | P19: 0 | Q19: 0 | S19: 0 | T19: 0
A20: 19 | B20: 5.95518034 | C20: 4.7732746 | E20: FALSE | F20: FALSE | M20: 0 | N20: 0 | P20: 0 | Q20: 0 | S20: 0 | T20: 0
A21: 20 | B21: 8.97702256 | C21: 12.3319163 | E21: FALSE | F21: FALSE | M21: 0 | N21: 0 | P21: 0 | Q21: 0 | S21: 0 | T21: 0
A22: 21 | B22: 9.6300482 | C22: 11.9626183 | E22: FALSE | F22: FALSE | M22: 0 | N22: 0 | P22: 0 | Q22: 0 | S22: 0 | T22: 0
A23: 22 | B23: 8.10172595 | C23: 12.6793998 | E23: FALSE | F23: FALSE | M23: 0 | N23: 0 | P23: 0 | Q23: 0 | S23: 0 | T23: 0
A24: 23 | B24: 4.51350669 | C24: 4.25871039 | E24: FALSE | F24: FALSE | M24: 0 | N24: 0 | P24: 0 | Q24: 0 | S24: 0 | T24: 0
A25: 24 | B25: 9.69084598 | C25: 12.1507546 | E25: FALSE | F25: FALSE | M25: 0 | N25: 0 | P25: 0 | Q25: 0 | S25: 0 | T25: 0
A26: 25 | B26: 3.27332773 | C26: 2.7018407 | E26: FALSE | F26: FALSE | M26: 0 | N26: 0 | P26: 0 | Q26: 0 | S26: 0 | T26: 0
A27: 26 | B27: 8.43104463 | C27: 11.3286742 | E27: FALSE | F27: FALSE | M27: 0 | N27: 0 | P27: 0 | Q27: 0 | S27: 0 | T27: 0
A28: 27 | B28: 6.06165876 | C28: 5.55362394 | E28: FALSE | F28: FALSE | M28: 0 | N28: 0 | P28: 0 | Q28: 0 | S28: 0 | T28: 0
A29: 28 | B29: 4.49460797 | C29: 7.05270137 | E29: FALSE | F29: FALSE | M29: 0 | N29: 0 | P29: 0 | Q29: 0 | S29: 0 | T29: 0
A30: 29 | B30: 4.60908685 | C30: 2.60411558 | E30: FALSE | F30: FALSE | M30: 0 | N30: 0 | P30: 0 | Q30: 0 | S30: 0 | T30: 0
A31: 30 | B31: 3.60214925 | C31: 6.04667724 | E31: FALSE | F31: FALSE | M31: 0 | N31: 0 | P31: 0 | Q31: 0 | S31: 0 | T31: 0
A32: 31 | B32: 5.68477606 | C32: 4.15507128 | E32: FALSE | F32: FALSE | M32: 0 | N32: 0 | P32: 0 | Q32: 0 | S32: 0 | T32: 0
A33: 32 | B33: 4.66966127 | C33: 5.38860315 | E33: FALSE | F33: FALSE | M33: 0 | N33: 0 | P33: 0 | Q33: 0 | S33: 0 | T33: 0
A34: 33 | B34: 2.44821177 | C34: -1.09291696 | D34: =IF($A34<=n,INT(501*RAND()+1),"") ->  | E34: FALSE | F34: FALSE | M34: 0 | N34: 0 | P34: 0 | Q34: 0 | S34: 0 | T34: 0
A35: 34 | B35: 6.75089173 | C35: 6.68082052 | E35: FALSE | F35: FALSE | M35: 0 | N35: 0 | P35: 0 | Q35: 0 | S35: 0 | T35: 0
A36: 35 | B36: 1.7000925 | C36: -2.08932327 | E36: =IF(A36<=n,IF(D36<>"",INDEX($B$2:$B$502,D36),E35)) -> FALSE | F36: =IF(A36<=n,IF(D36<>"",INDEX($C$2:$C$502,D36),F35)) -> FALSE | J36: =IF($A36<=n,E36,"") ->  | K36: =IF($A36<=n,F36,"") ->  | M36: =IF($A36<=n,(F36-a*E36-b)^2,0) -> 0 | N36: =IF($A36<=n,(F36-AVERAGE(F$2:F$53))^2,0) -> 0 | P36: =IF($A36<=n,($F36-aa*$E36-bb)^2,0) -> 0 | Q36: =IF($A36<=n,($F36-AVERAGE($F$2:$F$53))^2,0) -> 0 | S36: =IF($A36<=n,($F36-aaa*$E36-bbb)^2,0) -> 0 | T36: =IF($A36<=n,($F36-AVERAGE($F$2:$F$53))^2,0) -> 0
A37: 36 | B37: 1.66489539 | C37: 1.82337856 | E37: FALSE | F37: FALSE | M37: 0 | N37: 0 | P37: 0 | Q37: 0 | S37: 0 | T37: 0
A38: 37 | B38: 3.92028448 | C38: 2.04055271 | E38: FALSE | F38: FALSE | M38: 0 | N38: 0 | P38: 0 | Q38: 0 | S38: 0 | T38: 0
A39: 38 | B39: 5.18673108 | C39: 5.84375759 | E39: FALSE | F39: FALSE | M39: 0 | N39: 0 | P39: 0 | Q39: 0 | S39: 0 | T39: 0
A40: 39 | B40: 2.77939124 | C40: 5.31050283 | E40: FALSE | F40: FALSE | M40: 0 | N40: 0 | P40: 0 | Q40: 0 | S40: 0 | T40: 0
A41: 40 | B41: 8.07864525 | C41: 8.03795487 | E41: FALSE | F41: FALSE | M41: 0 | N41: 0 | P41: 0 | Q41: 0 | S41: 0 | T41: 0
A42: 41 | B42: 2.3735837 | C42: -1.59270459 | E42: FALSE | F42: FALSE | M42: 0 | N42: 0 | P42: 0 | Q42: 0 | S42: 0 | T42: 0
A43: 42 | B43: 7.55933738 | C43: 12.6835751 | E43: FALSE | F43: FALSE | M43: 0 | N43: 0 | P43: 0 | Q43: 0 | S43: 0 | T43: 0
A44: 43 | B44: 5.13345519 | C44: 8.29723619 | E44: FALSE | F44: FALSE | M44: 0 | N44: 0 | P44: 0 | Q44: 0 | S44: 0 | T44: 0
A45: 44 | B45: 2.51870786 | C45: 3.95381 | E45: FALSE | F45: FALSE | M45: 0 | N45: 0 | P45: 0 | Q45: 0 | S45: 0 | T45: 0
A46: 45 | B46: 9.37237474 | C46: 9.61764637 | E46: FALSE | F46: FALSE | M46: 0 | N46: 0 | P46: 0 | Q46: 0 | S46: 0 | T46: 0
A47: 46 | B47: 6.94092202 | C47: 6.74365555 | E47: FALSE | F47: FALSE | M47: 0 | N47: 0 | P47: 0 | Q47: 0 | S47: 0 | T47: 0
A48: 47 | B48: 3.47347018 | C48: 0.356953922 | E48: FALSE | F48: FALSE | M48: 0 | N48: 0 | P48: 0 | Q48: 0 | S48: 0 | T48: 0
A49: 48 | B49: 1.16874791 | C49: -3.10672775 | E49: FALSE | F49: FALSE | M49: 0 | N49: 0 | P49: 0 | Q49: 0 | S49: 0 | T49: 0
A50: 49 | B50: 1.22022199 | C50: -2.85875217 | E50: FALSE | F50: FALSE | M50: 0 | N50: 0 | P50: 0 | Q50: 0 | S50: 0 | T50: 0
A51: 50 | B51: 3.33730571 | C51: 0.911521898 | E51: FALSE | F51: FALSE | M51: 0 | N51: 0 | P51: 0 | Q51: 0 | S51: 0 | T51: 0
A52: 51 | B52: 9.91048198 | C52: 11.89212396 | E52: FALSE | F52: FALSE | M52: 0 | N52: 0 | P52: 0 | Q52: 0 | S52: 0 | T52: 0
A53: 52 | B53: 8.42129982 | C53: 10.24603712 | E53: FALSE | F53: FALSE | M53: 0 | N53: 0 | P53: 0 | Q53: 0 | S53: 0 | T53: 0
A54: 53 | B54: 0.206671698 | C54: -0.791170175 | D54: sums | E54: =SUM(E2:E53) -> 63.2171656 | F54: =SUM(F2:F53) -> 96.39330862 | G54: =SUM(G2:G53) -> 693.4222724 | H54: =SUM(H2:H53) -> 455.6078327 | L54: Sums = | M54: =SUM(M2:M53) -> 35.83178141 | N54: =SUM(N2:N53) -> 246.5179651 | O54: Sums = | P54: =SUM(P2:P53) -> 44.42703862 | Q54: =SUM(Q2:Q53) -> 246.5179651 | R54: Sums = | S54: =SUM(S2:S53) -> 42.07464361 | T54: =SUM(T2:T53) -> 246.5179651
A55: 54 | B55: 6.4843481 | C55: 10.3540317 | G55: a= | H55: =(n*G54-E54*F54)/(n*H54-E54^2) -> 1.510853247
A56: 55 | B56: 9.14722657 | C56: 9.71488637 | G56: b= | H56: =(F54-H55*E54)/n -> 0.08013169898 | L56: R^2 = | M56: =1-M54/N54 -> 0.854648397 | O56: R^2 = | P56: =1-P54/Q54 -> 0.8197817405 | R56: R^2 = | S56: =1-S54/T54 -> 0.8293242297
A57: 56 | B57: 0.84874672 | C57: 0.715629715 | F57: xl,xr= | G57: 0 | H57: 14
A58: 57 | B58: 4.4389659 | C58: 2.81245038 | F58: yl,yr= | G58: =H56 -> 0.08013169898 | H58: =H56+14*H55 -> 21.23207716
A59: 58 | B59: 5.9462981 | C59: 9.71863808
A60: 59 | B60: 0.119493964 | C60: -4.58243463
A61: 60 | B61: 4.51046758 | C61: 6.96945848
A62: 61 | B62: 5.68622801 | C62: 9.69014381
A63: 62 | B63: 6.53330364 | C63: 9.85792786 | D63: Quartiles:
A64: 63 | B64: 5.24469467 | C64: 7.8713711 | D64: x's | E64: =QUARTILE(E2:E52,1) -> 3.014152282 | F64: y's | G64: =QUARTILE(F2:F52,1) -> 5.774631269 | H64: delta y = | I64: =G65-G64 -> 6.489183826
A65: 64 | B65: 2.33171315 | C65: 3.9683671 | E65: =QUARTILE(E2:E52,3) -> 8.257166917 | G65: =QUARTILE(F2:F52,3) -> 12.2638151
A66: 65 | B66: 2.17258428 | C66: -0.318387121
A67: 66 | B67: 1.1164724 | C67: -0.078287546 | E67: slope = | F67: =IF(H55>=0,I64/(E65-E64),-I64/(E65-E64)) -> 1.237681807
A68: 67 | B68: 8.53363023 | C68: 11.8219133 | E68: b = | F68: =G64-mQQ*E64 -> 2.044069826
A69: 68 | B69: 4.59207945 | C69: 2.43433646 | F69: xl,xr= | G69: 0 | H69: 14
A70: 69 | B70: 9.3413851 | C70: 14.2098571 | F70: yl,yr= | G70: =F68 -> 2.044069826 | H70: =F68+14*mQQ -> 19.37161512
A71: 70 | B71: 1.423125 | C71: 0.646345121
A72: 71 | B72: 5.25211799 | C72: 8.95341605 | J72: nX1 = | K72: =INT((n+2)/3+0.3) -> 4
A73: 72 | B73: 8.44975986 | C73: 10.1485986 | D73: Medians | F73: x | G73: y | J73: nX2 = | K73: =INT((n+2)/3+0.3) -> 4
A74: 73 | B74: 6.30581833 | C74: 5.82147702 | E74: 1st | F74: =PERCENTILE(J2:J53,1/6) -> 2.563746456 | G74: =PERCENTILE(K2:K53,1/6) -> 3.690700211 | J74: nX3 = | K74: =n-2*_nX1 -> 3
A75: 74 | B75: 3.13065817 | C75: 3.63331936 | E75: 3rd | F75: =PERCENTILE(J2:J53,5/6) -> 8.926054113 | G75: =PERCENTILE(K2:K53,5/6) -> 14.67311759
A76: 75 | B76: 4.48220544 | C76: 4.67629661 | E76: middle | F76: =MEDIAN(J2:J53) -> 5.964057635 | G76: =MEDIAN(K2:K53) -> 9.169401729
A77: 76 | B77: 4.3412922 | C77: 4.0240331 | H77: Line through Middle Point
A78: 77 | B78: 2.62332655 | C78: 4.44153764 | E78: slope = | F78: =(G75-G74)/(F75-F74) -> 1.726168863 | H78: slope = | I78: =mMed -> 1.726168863
A79: 78 | B79: 5.7589141 | C79: 6.31902082 | E79: b = | F79: =G74-mMed*F74 -> -0.7347590935 | H79: b = | I79: =G76-I78*F76 -> -1.125568859
A80: 79 | B80: 1.39826337 | C80: 1.12138749
A81: 80 | B81: 8.34654802 | C81: 10.0915653 | E81: distance = | F81: =ABS(mMed*F76-G76+F79)/SQRT(F79^2+1) -> 0.3149366819 | H81: Line 1/3 of way
A82: 81 | B82: 5.5414156 | C82: 8.21511411 | H82: b = | I82: =$F79+($I79-$F79)/3 -> -0.8650290153
A83: 82 | B83: 5.18564613 | C83: 7.96590089
A84: 83 | B84: 2.31240365 | C84: 2.11440066 | E84: Graphing points
A85: 84 | B85: 8.61456682 | C85: 11.9266656 | E85: =0 -> 0 | F85: =I82 -> -0.8650290153
A86: 85 | B86: 1.82822638 | C86: -2.92768506 | E86: 10 | F86: =10*I78+I82 -> 16.39665962
A87: 86 | B87: 1.25997063 | C87: 0.880998895
A88: 87 | B88: 5.98353379 | C88: 6.75417693
A89: 88 | B89: 8.87683015 | C89: 11.8436226
A90: 89 | B90: 2.35202778 | C90: -0.517630912
A91: 90 | B91: 6.60656315 | C91: 9.51956445
A92: 91 | B92: 4.4224596 | C92: 7.08149033
A93: 92 | B93: 8.05066739 | C93: 11.5738894
A94: 93 | B94: 9.77137147 | C94: 11.31715752
A95: 94 | B95: 6.26208838 | C95: 10.6125892
A96: 95 | B96: 7.44459369 | C96: 10.1652119
A97: 96 | B97: 4.82454293 | C97: 3.85889457
A98: 97 | B98: 5.57222481 | C98: 7.54623243
A99: 98 | B99: 4.41793735 | C99: 3.44458382
A100: 99 | B100: 8.498654961 | C100: 15.26596291
A101: 100 | B101: 5.163454745 | C101: 8.387427899
A102: 101 | B102: 5.445845676 | C102: 6.668110029
A103: 102 | B103: 3.409455717 | C103: 3.652082959
A104: 103 | B104: 5.089872537 | C104: 7.352982531
A105: 104 | B105: 2.796236799 | C105: 3.829449248
A106: 105 | B106: 3.355336566 | C106: 3.643402557
A107: 106 | B107: 5.573966051 | C107: 10.59684629
A108: 107 | B108: 1.14052562 | C108: 1.012054609
A109: 108 | B109: 6.002723661 | C109: 7.872636575
A110: 109 | B110: 4.247385375 | C110: 5.531413809
A111: 110 | B111: 2.589965259 | C111: 2.941322045
A112: 111 | B112: 3.85638947 | C112: 4.92575438
A113: 112 | B113: 4.329394739 | C113: 5.482066263
A114: 113 | B114: 9.488624039 | C114: 13.33210747
A115: 114 | B115: 1.252853786 | C115: 1.010064003
A116: 115 | B116: 5.792104739 | C116: 6.937223923
A117: 116 | B117: 5.325049375 | C117: 11.29006282
A118: 117 | B118: 1.634033923 | C118: 3.020722199
A119: 118 | B119: 7.945931319 | C119: 12.86608569
A120: 119 | B120: 4.16612675 | C120: 7.437545505
A121: 120 | B121: 0.3535435374 | C121: -1.073164342
A122: 121 | B122: 4.272841113 | C122: 5.220618265
A123: 122 | B123: 7.182313271 | C123: 9.864613996
A124: 123 | B124: 8.35537869 | C124: 12.24402141
A125: 124 | B125: 9.594377652 | C125: 14.97374558
A126: 125 | B126: 2.422150472 | C126: 2.138771277
A127: 126 | B127: 8.834973268 | C127: 11.91770108
A128: 127 | B128: 6.346243302 | C128: 11.08876583
A129: 128 | B129: 9.117770126 | C129: 11.88939036
A130: 129 | B130: 3.40214906 | C130: 7.329144141
A131: 130 | B131: 5.006036796 | C131: 5.953308079
A132: 131 | B132: 6.886491299 | C132: 9.410603282
A133: 132 | B133: 2.365753917 | C133: 1.900883604
A134: 133 | B134: 2.683019603 | C134: 3.038998418
A135: 134 | B135: 9.150091434 | C135: 14.55331338
A136: 135 | B136: 1.144664187 | C136: 3.169718417
A137: 136 | B137: 1.851418317 | C137: 2.269419017
A138: 137 | B138: 8.866205409 | C138: 15.39516343
A139: 138 | B139: 7.241567808 | C139: 9.575507065
A140: 139 | B140: 3.54670902 | C140: 8.890824402
A141: 140 | B141: 0.7627152342 | C141: 0.2338329209
A142: 141 | B142: 4.800506312 | C142: 5.610688637
A143: 142 | B143: 9.911222215 | C143: 14.01070131
A144: 143 | B144: 3.129816222 | C144: 4.067824527
A145: 144 | B145: 6.618233798 | C145: 10.93446982
A146: 145 | B146: 0.8525446832 | C146: 2.999647937
A147: 146 | B147: 8.091907966 | C147: 12.02246854
A148: 147 | B148: 5.446111592 | C148: 7.140385258
A149: 148 | B149: 1.137754207 | C149: 4.165309598
A150: 149 | B150: 8.090021663 | C150: 10.60334957
A151: 150 | B151: 6.823624893 | C151: 12.35404068
A152: 151 | B152: 5.339735175 | C152: 7.177933736
A153: 152 | B153: 6.920232629 | C153: 8.974504092
A154: 153 | B154: 3.238454736 | C154: 4.354441304
A155: 154 | B155: 9.837375533 | C155: 15.80117633
A156: 155 | B156: 4.825641159 | C156: 6.160031288
A157: 156 | B157: 7.522274139 | C157: 10.39817808
A158: 157 | B158: 7.281089293 | C158: 9.735038872
A159: 158 | B159: 6.576493163 | C159: 13.21882269
A160: 159 | B160: 7.14326188 | C160: 9.249714156
A161: 160 | B161: 2.379058156 | C161: 5.635721578
A162: 161 | B162: 4.382051539 | C162: 4.936514723
A163: 162 | B163: 1.728656525 | C163: 1.465485586
A164: 163 | B164: 5.493235531 | C164: 8.865620796
A165: 164 | B165: 9.965606271 | C165: 13.99774901
A166: 165 | B166: 3.040116362 | C166: 3.583370544
A167: 166 | B167: 8.690891498 | C167: 15.60378946
A168: 167 | B168: 5.694993418 | C168: 7.587259181
A169: 168 | B169: 5.71037702 | C169: 7.239777269
A170: 169 | B170: 7.858001029 | C170: 12.82808101
A171: 170 | B171: 3.744694891 | C171: 4.464181774
A172: 171 | B172: 8.778074625 | C172: 13.50642065
A173: 172 | B173: 7.31031285 | C173: 10.56882332
A174: 173 | B174: 4.28562054 | C174: 5.710111432
A175: 174 | B175: 6.322354733 | C175: 8.213277336
A176: 175 | B176: 2.231528297 | C176: 2.404254766
A177: 176 | B177: 3.506806691 | C177: 4.916780199
A178: 177 | B178: 5.367929196 | C178: 6.510966796
A179: 178 | B179: 7.251810584 | C179: 11.87564702
A180: 179 | B180: 0.03264896274 | C180: 0.141121088
A181: 180 | B181: 3.121413244 | C181: 3.831618274
A182: 181 | B182: 6.289004383 | C182: 12.75129234
A183: 182 | B183: 1.308641244 | C183: 3.608110363
A184: 183 | B184: 2.321756073 | C184: 2.924827135
A185: 184 | B185: 0.1414582344 | C185: -0.8367194623
A186: 185 | B186: 8.169997321 | C186: 11.34178243
A187: 186 | B187: 8.005788583 | C187: 10.37636983
A188: 187 | B188: 6.519533522 | C188: 9.25470835
A189: 188 | B189: 0.09134565558 | C189: -1.467150419
A190: 189 | B190: 1.10180771 | C190: 0.4625460936
A191: 190 | B191: 3.609999136 | C191: 5.909913366
A192: 191 | B192: 8.862057696 | C192: 12.36862636
A193: 192 | B193: 6.637214147 | C193: 9.03810549
A194: 193 | B194: 7.323838368 | C194: 9.848668602
A195: 194 | B195: 3.618389603 | C195: 4.39875626
A196: 195 | B196: 7.896239566 | C196: 10.4676899
A197: 196 | B197: 0.7680377099 | C197: -0.1752951546
A198: 197 | B198: 3.002048693 | C198: 4.451151681
A199: 198 | B199: 6.01787814 | C199: 7.387096473
A200: 199 | B200: 1.695444701 | C200: 1.766260807
... 303 more rows

Sheet Sheet4
B1: x's | C1: -1 | D1: 11
B2: y's | C2: =1.5003*C1-0.5874 -> -2.0877 | D2: =1.5003*D1-0.5874 -> 15.9159
C3: -1 | D3: 11
C4: =C2-4.69 -> -6.7777 | D4: =D2-4.69 -> 11.2259
C5: -1 | D5: 11
C6: =C2+4.69 -> 2.6023 | D6: =D2+4.69 -> 20.6059
C7: -1 | D7: 11 | E7: sample 1
C8: =samples!G58 -> 0.08013169898 | D8: =samples!H58 -> 21.23207716
B9: series 5 | C9: -1 | D9: 11 | E9: 2
C10: =samples!L58 -> 0 | D10: =samples!M58 -> 0
B11: 16 | C11: -1 | D11: 11 | E11: 3
C12: =samples!Q$58 -> 0 | D12: =samples!R$58 -> 0
B13: 18 | C13: -1 | D13: 11 | E13: 4
C14: =samples!V$58 -> 0 | D14: =samples!W$58 -> 0
B15: 20 | C15: -1 | D15: 11 | E15: 5
C16: =samples!AA$58 -> 0 | D16: =samples!AB$58 -> 0
A159: center circle
C201: =LinesOfFit!#REF! ->  | D201: =LinesOfFit!#REF! -> 
C202: 0.00 | D202: 1
